[Event "CCT Airthings Masters Play-In 2023"]
[Site "Online"]
[Date "2023.02.03"]
[Round "3"]
[White "K_A_S_T_O_R"]
[Black "mishanick"]
[Result "1-0"]
[ECO "D35"]
[WhiteElo "2600"]
[BlackElo "2722"]
[Annotator "TA"]
[PlyCount "171"]
[EventDate "2023.02.03"]
[EventType "swiss"]
[EventCountry "NET"]
[SourceTitle "playchess.com"]
[Source "ChessBase"]
[SourceQuality "1"]
[TimeControl "600+2"]

{[%evp 18,170,12,2,6,0,24,15,36,14,27,22,24,26,51,35,61,39,76,58,78,9,129,132,140,139,143,132,157,158,224,214,579,597,575,593,583,554,652,656,688,666,745,756,773,735,840,773,784,677,29992,1073,967,991,897,555,559,556,531,449,437,431,515,509,636,635,601,552,656,646,682,571,5808,719,1061,956,885,885,943,933,835,840,1085,1169,1174,1169,1469,1310,6207,986,1114,946,1416,1359,1192,1276,1245,1221,1621,1966,12835,12832,12839,12839,29985,29986,29994,7141,7141,12837,12838,12838,12839,12836,12836,12837,12837,12837,12839,12840,12841,12841,12840,12841,12841,12841,12841,12841,12839,12840,12843,12843,12844,12845,12845,12845,12846,12845,12846,12846,12847,12846,27999,27999,27999,27999,27999,27999,27999,27999,27999,27999,27999,27999,29999]} 1. d4 {[%emt 0:00:03] Marin,Mihail} Nf6 {[%emt 0:00:04]} 2. Nf3 {[%emt 0:00:05]} d5 {[%emt 0:00:01]} 3. c4 {[%emt 0:00:06]} e6 {[%emt 0:00:01]} 4. Nc3 {[%emt 0:00:02]} Nbd7 {[%emt 0:00:01]} 5. cxd5 {[%emt 0:00:01]} exd5 {[%emt 0:00:01]} 6. Bf4 {[%emt 0:00:08]} c6 {[%emt 0:00:01]} 7. e3 {[%emt 0:00:02]} Nh5 {[%emt 0:00:01]} 8. Bg5 {[%emt 0:00:01]} Be7 {[%emt 0:00:01]} 9. Bxe7 {[%emt 0:00:02]} Qxe7 {[%emt 0:00:00]} 10. Qc2 {[%emt 0:00:04]} Nb6 {[%emt 0:00:10] D35: Queen's Gambit Declined: Exchange Variation.} 11. O-O-O {[%emt 0:00:05] [#]} O-O $146 {[%emt 0:00:08]} ({Predecessor:} 11... Nf6 12. Bd3 Be6 13. h3 O-O-O 14. Kb1 Kb8 15. Nd2 Rc8 16. Nb3 Nfd7 17. Ne2 c5 18. dxc5 Nxc5 19. Nxc5 Rxc5 {1-0 Nakamura,H (2787)-Aronian,L (2792) Paris GCT rapid 2016 (8)}) 12. Bd3 {[%emt 0:00:02]} g6 {[%emt 0:00:17] The position is equal.} 13. h3 {[%emt 0:00:07]} a5 {[%emt 0:00:14]} 14. Kb1 {[%emt 0:00:12]} a4 {[%emt 0:00:01]} 15. a3 {[%emt 0:00:05]} Be6 {[%emt 0:00:04]} 16. g4 {[%emt 0:00:09]} Ng7 {[%emt 0:00:01]} 17. Rdg1 {[%emt 0:00:04]} Nd7 {[%emt 0:00:21]} 18. h4 {[%emt 0:00:05] White is more active.} f5 {[%emt 0:00:03] [#]} 19. g5 {[%emt 0:00:10]} ({White should try} 19. gxf5 $1 $16 Bxf5 20. Ne1) 19... Nh5 {[%emt 0:00:10]} (19... b5 $1 $11) 20. Nxa4 $16 {[%emt 0:00:12] White stays focused until the end.} f4 {[%emt 0:00:02] [#]} 21. e4 {[%emt 0:00:12]} ({Don't go for} 21. Bxg6 $2 hxg6 22. e4 (22. Qxg6+ $2 {too greedy.} Ng7 $19) 22... dxe4 $19) 21... dxe4 {[%emt 0:00:09]} 22. Bxe4 {[%emt 0:00:01]} Ra5 {[%emt 0:00:07]} 23. Re1 {[%emt 0:00:09]} Qf7 {[%emt 0:00:04]} (23... Rfa8 $16) 24. Nc5 $18 {[%emt 0:00:13]} Rfa8 $2 {[%emt 0:00:55]} (24... Nxc5 25. dxc5 Rfa8) 25. Nxe6 {[%emt 0:00:29]} Qxe6 {[%emt 0:00:02]} 26. Bd3 {[%emt 0:00:08]} Qd6 {[%emt 0:00:06]} 27. Bc4+ {[%emt 0:00:02]} Kh8 {[%emt 0:00:07]} 28. Re6 {[%emt 0:00:01]} Qf8 {[%emt 0:00:07]} 29. Rhe1 {[%emt 0:00:05]} Nb6 {[%emt 0:00:01]} 30. Re7 {[%emt 0:00:14]} Nxc4 {[%emt 0:00:32]} 31. Qxc4 {[%emt 0:00:02]} Qf5+ {[%emt 0:00:01] Black is weak on the dark squares} 32. Ka2 {[%emt 0:00:06] Re8+ is the strong threat.} Ng7 {[%emt 0:00:36] Prevents Re8+} 33. Rxb7 {[%emt 0:00:16]} Qh3 {[%emt 0:00:17]} 34. Qb3 {[%emt 0:00:09]} (34. Qf7 $142 Rg8 35. Re8 (35. Qxf4 Rf5 $16) 35... Qe6+ 36. Rxe6 Raa8 37. Ne5 f3 38. Nxg6+ {[%mdl 64] Demolition} hxg6 39. Rxg6 Rxa3+ 40. bxa3 Kh7 41. Rh6#) 34... Rb5 {[%emt 0:00:16]} 35. Rxb5 {[%emt 0:00:05]} cxb5 {[%emt 0:00:00]} 36. Ne5 {[%emt 0:00:05] White threatens Nf7+ and mate.} Qxb3+ {[%emt 0:00:01]} 37. Kxb3 {[%emt 0:00:01][%mdl 4096] Endgame KRN-KRN} Nf5 {[%emt 0:00:00]} 38. Nf3 {[%emt 0:00:07]} Rc8 {[%emt 0:00:14]} 39. Re4 {[%emt 0:00:02]} Rc1 {[%emt 0:00:06]} 40. Rxf4 {[%emt 0:00:02]} Rf1 {[%emt 0:00:01]} 41. Ne5 {[%emt 0:00:08]} Rd1 {[%emt 0:00:02]} 42. Kc2 {[%emt 0:00:01]} Rh1 {[%emt 0:00:02]} 43. d5 {[%emt 0:00:03][%cal Of4f5] Strongly threatening Rxf5!} Kg7 {[%emt 0:00:03]} 44. Nf3 {[%emt 0:00:11][%cal Be5f3,Bf3d4,Bd4e6][%mdl 32]} h6 {[%emt 0:00:11]} 45. Nd4 {[%emt 0:00:06]} hxg5 {[%emt 0:00:07]} 46. hxg5 {[%emt 0:00:01]} Nd6 {[%emt 0:00:06]} 47. Rf6 {[%emt 0:00:19]} Ne4 {[%emt 0:00:02]} 48. Ne6+ {[%emt 0:00:00]} Kh7 {[%emt 0:00:02]} 49. Rf7+ {[%emt 0:00:02]} Kg8 {[%emt 0:00:01]} 50. Rg7+ {[%emt 0:00:10]} Kh8 {[%emt 0:00:01]} 51. Rxg6 {[%emt 0:00:00] aiming for Rh6+.} Rf1 {[%emt 0:00:04]} 52. Kd3 {[%emt 0:00:03]} Nd6 {[%emt 0:00:01]} 53. Nd4 {[%emt 0:00:06]} Nc4 {[%emt 0:00:04]} 54. b3 {[%emt 0:00:01]} Rd1+ {[%emt 0:00:02]} 55. Kc3 {[%emt 0:00:06]} Ne5 {[%emt 0:00:10]} 56. Rh6+ {[%emt 0:00:03]} Kg8 {[%emt 0:00:00]} 57. Nf5 {[%emt 0:00:05]} Rd3+ {[%emt 0:00:04]} 58. Kb4 {[%emt 0:00:08] Hoping for g6.} Rf3 {[%emt 0:00:00]} 59. Rf6 {[%emt 0:00:04]} Kh7 {[%emt 0:00:12]} 60. Ne7 {[%emt 0:00:06]} Rd3 {[%emt 0:00:05]} 61. f4 {[%emt 0:00:05]} Nd7 {[%emt 0:00:05]} 62. Rh6+ {[%emt 0:00:06]} (62. Rf7+ $142 Kh8 63. g6 Rxb3+ 64. Kxb3 Nf6 65. g7+ Kh7 66. g8=Q+ Kh6 67. Qg6#) 62... Kg7 {[%emt 0:00:01]} 63. Nf5+ {[%emt 0:00:01]} Kg8 {[%emt 0:00:01]} 64. Rd6 {[%emt 0:00:04]} Nf8 {[%emt 0:00:04]} 65. g6 {[%emt 0:00:01]} Rf3 {[%emt 0:00:01]} 66. Ne7+ {[%emt 0:00:03]} Kg7 {[%emt 0:00:01]} 67. f5 {[%emt 0:00:01]} Kh6 {[%emt 0:00:02]} 68. a4 {[%emt 0:00:06]} bxa4 {[%emt 0:00:02]} 69. bxa4 {[%emt 0:00:00][%cal Bb3a4,Ba4a5,Ba5a6][%mdl 32]} Rf1 {[%emt 0:00:01]} 70. a5 {[%emt 0:00:02]} Rb1+ {[%emt 0:00:01]} 71. Kc3 {[%emt 0:00:00]} Rc1+ {[%emt 0:00:02]} 72. Kd2 {[%emt 0:00:01]} Ra1 {[%emt 0:00:01]} 73. a6 {[%emt 0:00:01]} Ra3 {[%emt 0:00:01]} 74. f6 {[%emt 0:00:03] White wants to mate with g7.} Nxg6 {[%emt 0:00:02]} 75. f7 {[%emt 0:00:01]} Kg7 {[%emt 0:00:01]} 76. Nxg6 {[%emt 0:00:01]} Kxf7 {[%emt 0:00:02] KRN-KR} 77. Re6 {[%emt 0:00:03]} Ra5 {[%emt 0:00:03]} 78. Ne5+ {[%emt 0:00:01]} Kf8 {[%emt 0:00:01]} 79. Nc4 {[%emt 0:00:08]} Rxd5+ {[%emt 0:00:02]} 80. Kc3 {[%emt 0:00:00] White mates.} Rd1 {[%emt 0:00:03]} 81. Kb2 {[%emt 0:00:05]} Rd7 {[%emt 0:00:07]} 82. Rb6 {[%emt 0:00:03]} Ke7 {[%emt 0:00:09]} 83. Rb7 {[%emt 0:00:03]} Kd8 {[%emt 0:00:02]} 84. Rxd7+ {[%emt 0:00:01]} Kc8 {[%emt 0:00:01]} 85. Nb6+ {[%emt 0:00:03]} Kb8 {[%emt 0:00:01]} 86. Rb7# {[%emt 0:00:01] Weighted Error Value: White=0.32/Black=0.67} 1-0

[Event "CCT Airthings Masters Play-In 2023"]
[Site "Online"]
[Date "2023.02.03"]
[Round "3"]
[White "Sam_ChessMood"]
[Black "Panjwani, Raja"]
[Result "1/2-1/2"]
[ECO "D37"]
[WhiteElo "2597"]
[BlackElo "2485"]
[Annotator "TA"]
[PlyCount "89"]
[EventDate "2023.02.03"]
[EventType "swiss"]
[EventCountry "NET"]
[SourceTitle "playchess.com"]
[Source "ChessBase"]
[SourceQuality "1"]
[TimeControl "600+2"]

{[%evp 12,89,14,14,7,10,12,6,27,0,0,6,36,32,39,39,69,16,20,0,21,8,23,27,107,107,112,112,146,142,200,108,127,123,127,127,127,122,932,942,941,921,579,0,0,0,0,0,5373,0,0,0,0,0,0,0,0,0,0,0,0,0,0,0,0,0,0,0,0,0,0,0,0,0,0,0,0,0,0,0]} 1. d4 {[%emt 0:00:04]} d5 {[%emt 0:00:09]} 2. c4 {[%emt 0:00:02]} e6 {[%emt 0:00:02]} 3. Nf3 {[%emt 0:00:02]} Nf6 {[%emt 0:00:03]} 4. Nc3 {[%emt 0:00:02]} Be7 {[%emt 0:00:03]} 5. Bf4 {[%emt 0:00:04]} O-O {[%emt 0:00:02]} 6. e3 {[%emt 0:00:02]} Nbd7 {[%emt 0:00:01]} 7. Be2 {[%emt 0:00:37]} dxc4 {[%emt 0:00:13] D37: Queen's Gambit Declined: 5 Bf4.} 8. O-O {[%emt 0:00:02]} c5 {[%emt 0:00:19]} 9. Bxc4 {[%emt 0:01:45]} a6 {[%emt 0:00:04] Against Nb5} 10. a4 {[%emt 0:00:19]} cxd4 {[%emt 0:00:06]} 11. Qxd4 {[%emt 0:00:06]} Qa5 {[%emt 0:00:12]} 12. Bd6 {[%emt 0:00:58]} Bxd6 {[%emt 0:00:04]} 13. Qxd6 {[%emt 0:00:01]} Nc5 {[%emt 0:00:10] [#]} 14. Rfd1 $146 {[%emt 0:00:16] Black is weak on the dark squares} (14. Ne5 $1 $14) ({Predecessor:} 14. Rab1 Rd8 15. Qf4 Qb4 16. Ne5 a5 17. g4 Rf8 18. Rfd1 Ncd7 19. Rd4 Qe7 20. Rbd1 {1-0 Korobov,A (2700)-Kravtsiv,M (2621) Wch Blitz 9th 2015 (21)}) 14... Bd7 $11 {[%emt 0:00:53]} 15. Ne5 {[%emt 0:00:20]} Rac8 {[%emt 0:00:12]} 16. Rd4 {[%emt 0:01:02]} b5 {[%emt 0:00:23]} 17. Bxb5 {[%emt 0:00:37]} axb5 {[%emt 0:02:23]} (17... Bxb5 $11 18. b4 Qc7 19. bxc5 (19. axb5 Nb3 $11) (19. Qxc5 Qb7 $11) 19... Qxc5 20. Nxb5 (20. Qxc5 Rxc5 21. axb5 axb5 $11) 20... axb5) 18. b4 $36 {[%emt 0:00:03][%mdl 2048] Black is under strong pressure.} Qc7 {[%emt 0:01:02]} 19. bxc5 {[%emt 0:01:46] White has more active pieces.} (19. Qxc5 Qb8 20. Qd6 Qxd6 21. Rxd6 Rxc3 $14) 19... Qxd6 {[%emt 0:01:12]} 20. Rxd6 {[%emt 0:00:03]} b4 {[%emt 0:00:06]} (20... Rxc5 $16 21. Nxd7 Nxd7) 21. Na2 {[%emt 0:00:53]} ({Don't play} 21. Nxd7 $6 Nxd7 22. Nd5 exd5 23. Rxd7 Rxc5 $16) (21. Ne2 $18 Be8 22. Nd3) 21... Bxa4 {[%emt 0:01:20]} 22. Nxb4 {[%emt 0:00:08][%cal Ba2b4,Bb4c6,Bc6e7][%mdl 32]} Ne4 {[%emt 0:00:07]} 23. Rxa4 {[%emt 0:01:00][%cal Oe5c6] [#] And now Nec6! would win.} Nxd6 {[%emt 0:00:28]} 24. Nbc6 {[%emt 0:00:01]} Ra8 $2 {[%emt 0:00:01][%mdl 8192]} (24... Nf5 $16) 25. Ne7+ $18 {[%emt 0:00:09] Excellent horsemanship.} Kh8 {[%emt 0:00:01]} 26. Rxa8 {[%emt 0:00:07]} Rxa8 {[%emt 0:00:00][%mdl 4096] Endgame KRN-KNN} 27. g4 $2 {[%emt 0:00:09]} ({White should play} 27. Kf1 $18 f6 28. cxd6 fxe5 29. Nc6) 27... f6 $11 {[%emt 0:00:18]} 28. cxd6 {[%emt 0:00:01][%cal Re5f7] [#]} fxe5 {[%emt 0:00:00] KR-KN} 29. Nc6 {[%emt 0:00:02] Prevents Rd8} Ra1+ $1 {[%emt 0:00:16]} 30. Kg2 {[%emt 0:00:01][%cal Od6d7] Black must now prevent d7!} Rd1 {[%emt 0:00:02] The position is equal.} 31. Nxe5 {[%emt 0:00:01]} Kg8 {[%emt 0:00:03]} 32. d7 {[%emt 0:00:03]} Kf8 {[%emt 0:00:03]} 33. f4 {[%emt 0:00:02]} Ke7 {[%emt 0:00:03]} 34. h4 {[%emt 0:00:01]} h6 {[%emt 0:00:07]} 35. h5 {[%emt 0:00:05]} Rd5 {[%emt 0:00:23]} 36. Kf3 {[%emt 0:00:02]} Rxe5 {[%emt 0:00:13]} 37. fxe5 {[%emt 0:00:01] aiming for Ke4.} Kxd7 {[%emt 0:00:01] KP-KP} 38. Ke4 {[%emt 0:00:07] Kd4 would be deadly.} Kc6 {[%emt 0:00:01]} 39. Kd4 {[%emt 0:00:00] Threatens to win with Kc4.} Kb5 {[%emt 0:00:01]} 40. Kc3 {[%emt 0:00:02]} Kc5 {[%emt 0:00:01]} 41. e4 {[%emt 0:00:03]} Kb5 {[%emt 0:00:02]} 42. Kb3 {[%emt 0:00:02]} Kc5 {[%emt 0:00:00]} 43. Kc3 {[%emt 0:00:00]} Kb5 {[%emt 0:00:01]} 44. Kb3 {[%emt 0:00:01]} Kc5 {[%emt 0:00:00] ( -> ...Kd4)} 45. Kc3 {[%emt 0:00:00] Weighted Error Value: White=0.23 (precise) /Black=0.12 (very precise)} 1/2-1/2

[Event "CCT Airthings Masters Play-In 2023"]
[Site "Online"]
[Date "2023.02.03"]
[Round "3"]
[White "Puranik, Abhimanyu"]
[Black "Durarbayli, Vasif"]
[Result "0-1"]
[ECO "A30"]
[WhiteElo "2596"]
[BlackElo "2635"]
[Annotator "TA"]
[PlyCount "88"]
[EventDate "2023.02.03"]
[EventType "swiss"]
[EventCountry "NET"]
[SourceTitle "playchess.com"]
[Source "ChessBase"]
[SourceQuality "1"]
[TimeControl "600+2"]

{[%evp 13,88,10,37,1,1,0,0,-21,5,-10,0,0,0,-12,-11,-47,-45,-61,-18,-70,-44,-65,-32,-76,-68,-123,-119,-117,-127,-147,-139,-300,-155,-164,-147,-222,-78,-79,-70,-78,-74,-79,-78,-175,-120,-102,-89,-90,-85,-72,-67,-71,-64,-72,0,0,0,-295,-252,-247,-265,-295,-275,-283,-293,-242,-54,-2606,-1374,-29991,-29984,-29971,-29972,-29972,-29973,-29997,-29998]} 1. Nf3 {[%emt 0:00:03]} c5 {[%emt 0:00:06]} 2. c4 {[%emt 0:00:02]} Nf6 {[%emt 0:00:01]} 3. Nc3 {[%emt 0:00:01]} e6 {[%emt 0:00:01]} 4. g3 {[%emt 0:00:03]} b6 {[%emt 0:00:01]} 5. Bg2 {[%emt 0:00:02]} Bb7 {[%emt 0:00:01]} 6. O-O {[%emt 0:00:01]} Be7 {[%emt 0:00:00]} 7. Re1 {[%emt 0:00:01]} Ne4 {[%emt 0:00:08] 7...d5 is setting a new trend.} 8. Qc2 {[%emt 0:00:06] A30: Symmetrical English: Double Fianchetto and Hedgehog.} Nxc3 {[%emt 0:00:06]} 9. dxc3 {[%emt 0:00:01]} d6 {[%emt 0:00:16]} 10. Bf4 {[%emt 0:00:06] The position is equal.} Qc7 {[%emt 0:00:01]} 11. Rad1 {[%emt 0:00:02]} Nc6 {[%emt 0:01:15]} 12. e4 {[%emt 0:00:04]} Ne5 {[%emt 0:00:09] [#]} 13. h3 $146 {[%emt 0:03:32]} ({Predecessor:} 13. Nd2 O-O 14. h3 Rad8 15. Be3 Nd7 16. f4 Rfe8 17. Bf2 Bf8 18. g4 g6 19. Nf1 {1-0 Artemiev,V (2524)-Gordievsky,D (2474) Wch Rapid Khanty-Mansiysk 2013 (14)}) 13... Bc6 {[%emt 0:00:18]} 14. Nd2 {[%emt 0:00:12]} g5 {[%emt 0:00:09][%cal Bg7g5,Bg5g4][%mdl 32]} 15. Be3 {[%emt 0:00:08]} h5 {[%emt 0:00:25]} 16. b4 {[%emt 0:00:24]} ({White should play} 16. Nf3 $11) 16... g4 {[%emt 0:00:53]} 17. h4 $1 {[%emt 0:00:03]} Rg8 {[%emt 0:00:42]} (17... a5 $5 {[%cal Ra5b4]}) 18. a4 {[%emt 0:01:16] [#]} a5 $1 {[%emt 0:00:13]} 19. Rb1 {[%emt 0:00:11]} (19. b5 $15 Bb7 20. Bf4) 19... axb4 $17 {[%emt 0:00:22]} 20. cxb4 {[%emt 0:00:02]} Bxa4 {[%emt 0:00:01] Black is much more active.} (20... Rxa4 $2 21. b5 Bxb5 22. Rxb5 $18) 21. Qc3 {[%emt 0:00:37]} Bf6 {[%emt 0:00:07][%cal Oe5f3] And now ...Nf3+! would win.} 22. Qa3 $2 {[%emt 0:00:04]} (22. Kf1 $17) 22... Bc6 {[%emt 0:00:02]} (22... Ke7 $19 23. bxc5 bxc5) 23. Qb3 {[%emt 0:00:08]} Ke7 {[%emt 0:00:18] ...Ba4 would be deadly.} 24. Bf4 {[%emt 0:00:21]} (24. b5 $17 {keeps fighting.} Bb7 25. Nf1) 24... Ra4 {[%emt 0:00:51]} (24... cxb4 $19 {has better winning chances. aiming for ...Ng6.} 25. Bxe5 Bxe5 26. Qxb4 Ra2) 25. b5 {[%emt 0:00:19]} Rb4 {[%emt 0:00:03]} 26. Qe3 {[%emt 0:00:01]} Rxb1 {[%emt 0:00:02]} (26... Nxc4 $2 27. Nxc4 Rxc4 28. bxc6 $18) 27. Rxb1 {[%emt 0:00:00][%cal Be1b1,Bb1b3,Bb3a3][%mdl 32]} Bb7 {[%emt 0:00:08]} 28. Bf1 {[%emt 0:00:05]} (28. Rb3 $17) 28... Qb8 {[%emt 0:00:12]} (28... Kd7 $19 29. Bg2 Ra8 30. Bxe5 Bxe5) 29. Rb3 {[%emt 0:00:08]} Nd7 $36 {[%emt 0:00:35][%mdl 2048] Black is on the roll.} 30. Ra3 {[%emt 0:00:05]} Bd4 {[%emt 0:00:06]} 31. Qe2 {[%emt 0:00:13]} Ne5 {[%emt 0:00:10]} 32. Bg2 {[%emt 0:00:01]} Qc7 {[%emt 0:00:08]} 33. Nb3 {[%emt 0:00:30]} Ra8 {[%emt 0:00:03]} (33... Kd7 $17) 34. Rxa8 $11 {[%emt 0:00:01]} Bxa8 {[%emt 0:00:00]} 35. Be3 $2 {[%emt 0:01:04][%mdl 8192]} (35. Qd2 $11) 35... Bxe3 $19 {[%emt 0:01:20]} 36. Qxe3 {[%emt 0:00:01] [#]} Qa7 $1 {[%emt 0:00:09]} ({Weaker is} 36... Nxc4 37. Qg5+ Kd7 38. Qg8 $17) 37. Qg5+ {[%emt 0:00:02]} Kd7 {[%emt 0:00:01]} 38. Qxh5 {[%emt 0:00:01]} Qa2 {[%emt 0:00:10]} (38... Nxc4 $2 39. Qxf7+ Kd8 40. Qxa7 $18) 39. Qh8 {[%emt 0:00:04][%cal Oh8g8]} Bb7 $2 {[%emt 0:00:01]} ({Inferior is} 39... Qxb3 40. Qxa8 Nxc4 41. e5 Nxe5 42. Bc6+ Ke7 43. Qe8+ Kf6 44. Qh8+ Ke7 45. Qe8+ Kf6 46. Qh8+ Kg6 47. Qg8+ Kh6 48. Qh8+ Kg6 49. Qg8+ Kh6 50. Qh8+ Kg6 $11) (39... Ke7 $19 {Hoping for ...Nd3.} 40. Qb8 Qb1+ 41. Kh2 Qxb3 42. Qa7+ Nd7 43. Qxa8 Qxc4) 40. h5 $2 {[%emt 0:00:52][%mdl 8192]} Qxb3 {[%emt 0:00:07]} 41. h6 {[%emt 0:00:01]} Qb1+ {[%emt 0:00:10] Black mates.} (41... Nxc4 $2 42. Qf6 Qb2 43. Qxf7+ Kd8 44. Qf8+ (44. Qxb7 Qc1+ 45. Bf1 Nd2 $11) 44... Kc7 45. Qg7+ Qxg7 46. hxg7 $18) 42. Kh2 {[%emt 0:00:02]} Qb2 {[%emt 0:00:02]} 43. Qb8 {[%emt 0:00:04] [#]} Bxe4 $1 {[%emt 0:00:08]} 44. h7 {[%emt 0:00:14]} (44. Bxe4 Qxf2+) 44... Nf3+ {[%emt 0:00:11] Weighted Error Value: White=0.65/Black=0.43} 0-1

[Event "CCT Airthings Masters Play-In 2023"]
[Site "Online"]
[Date "2023.02.03"]
[Round "3"]
[White "Cayse"]
[Black "Wizard456"]
[Result "0-1"]
[ECO "C47"]
[WhiteElo "2590"]
[BlackElo "2721"]
[Annotator "NA"]
[PlyCount "94"]
[EventDate "2023.02.03"]
[EventType "swiss"]
[EventCountry "NET"]
[SourceTitle "playchess.com"]
[Source "ChessBase"]
[SourceQuality "1"]
[TimeControl "600+2"]

1. e4 {[%emt 0:00:03]} e5 {[%emt 0:00:07]} 2. Nf3 {[%emt 0:00:02]} Nc6 {[%emt 0:00:00]} 3. Nc3 {[%emt 0:00:02]} Nf6 {[%emt 0:00:01]} 4. a4 {[%emt 0:00:02]} Bd6 {[%emt 0:00:10]} 5. Bc4 {[%emt 0:00:06]} h6 {[%emt 0:00:04]} 6. O-O {[%emt 0:00:09]} O-O {[%emt 0:00:02]} 7. d3 {[%emt 0:00:05]} Be7 {[%emt 0:00:10]} 8. h3 {[%emt 0:00:51]} d6 {[%emt 0:00:01]} 9. Re1 {[%emt 0:00:24]} Re8 {[%emt 0:00:15]} 10. a5 {[%emt 0:00:19]} a6 {[%emt 0:00:05]} 11. Nd5 {[%emt 0:00:02]} Bf8 {[%emt 0:00:04]} 12. c3 {[%emt 0:00:01]} Nxd5 {[%emt 0:00:15]} 13. exd5 {[%emt 0:01:08]} Ne7 {[%emt 0:00:32]} 14. d4 {[%emt 0:00:04]} Ng6 {[%emt 0:00:08]} 15. Qc2 {[%emt 0:00:41]} Qf6 {[%emt 0:00:25]} 16. dxe5 {[%emt 0:01:11]} dxe5 {[%emt 0:00:58]} 17. Nh2 {[%emt 0:00:13]} Nf4 {[%emt 0:00:55]} 18. Ng4 {[%emt 0:00:46]} Bxg4 {[%emt 0:00:15]} 19. hxg4 {[%emt 0:00:00]} Bc5 {[%emt 0:00:27]} 20. Be3 {[%emt 0:00:40]} Qd6 {[%emt 0:00:25]} 21. Qe4 {[%emt 0:00:21]} Bxe3 {[%emt 0:00:24]} 22. fxe3 {[%emt 0:00:13]} Ng6 {[%emt 0:00:02]} 23. Rf1 {[%emt 0:00:03]} Rad8 {[%emt 0:00:13]} 24. Rf2 {[%emt 0:00:12]} Re7 {[%emt 0:00:05]} 25. Raf1 {[%emt 0:00:05]} Nf8 {[%emt 0:00:03]} 26. Rf5 {[%emt 0:00:47]} Nh7 {[%emt 0:00:08]} 27. b4 {[%emt 0:00:57]} Ng5 {[%emt 0:00:22]} 28. Rxg5 {[%emt 0:00:12]} hxg5 {[%emt 0:00:03]} 29. Rf5 {[%emt 0:00:18]} g6 {[%emt 0:00:11]} 30. Rf1 {[%emt 0:00:04]} Kg7 {[%emt 0:00:01]} 31. Bb3 {[%emt 0:00:02]} Rh8 {[%emt 0:00:15]} 32. Bc2 {[%emt 0:00:07]} Rh4 {[%emt 0:00:03]} 33. Qf3 {[%emt 0:00:48]} b6 {[%emt 0:01:38]} 34. axb6 {[%emt 0:00:04]} cxb6 {[%emt 0:00:00]} 35. Be4 {[%emt 0:00:01]} Rh8 {[%emt 0:00:05]} 36. Bd3 {[%emt 0:00:02]} a5 {[%emt 0:00:05]} 37. bxa5 {[%emt 0:00:03]} bxa5 {[%emt 0:00:00]} 38. Qe4 {[%emt 0:00:04]} Rc8 {[%emt 0:00:07]} 39. c4 {[%emt 0:00:02]} a4 {[%emt 0:00:01]} 40. Bb1 {[%emt 0:00:01]} a3 {[%emt 0:00:05]} 41. Rf2 {[%emt 0:00:01]} Rb7 {[%emt 0:00:02]} 42. Bd3 {[%emt 0:00:02]} Rb2 {[%emt 0:00:05]} 43. Rf1 {[%emt 0:00:04]} a2 {[%emt 0:00:07]} 44. Kh2 {[%emt 0:00:04]} Rb3 {[%emt 0:00:15]} 45. Kg1 {[%emt 0:00:04]} Ra3 {[%emt 0:00:02]} 46. Ra1 {[%emt 0:00:02]} Kg8 {[%emt 0:00:07]} 47. Bc2 {[%emt 0:00:02]} Qc5 {[%emt 0:00:03]} 0-1